fUSD/lending_fUSD_20250219
["ID","MTS","AMOUNT","RATE_DAILY","PERIOD"]
[353617658,1739958676287,-841.44,0.00014191,2]
[353617659,1739958676297,-500.0,0.00014191,2]
[353617660,1739958676307,-810.27,0.00014191,2]
[353617661,1739958676316,-500.0,0.00014191,2]
[353617662,1739958676325,-500.0,0.00014191,2]
[353617663,1739958676335,-594.76,0.00014191,2]
[353617664,1739958676344,-500.0,0.00014191,2]
[353617665,1739958676353,-500.0,0.00014191,2]
[353617666,1739958676362,-500.0,0.00014191,2]
[353617667,1739958676371,-253.32144283,0.00014191,2]
[353617668,1739958676385,-500.0,0.00014191,2]
[353617669,1739958676394,-500.0,0.00014191,2]
[353617670,1739958676404,-500.0,0.00014191,2]
[353617671,1739958676413,-500.0,0.00014191,2]
[353617672,1739958676423,-500.0,0.00014191,2]
[353617673,1739958676432,-500.0,0.00014191,2]
[353617674,1739958676442,-500.0,0.00014191,2]
[353617675,1739958676451,-500.0,0.00014191,2]
[353617676,1739958676460,-619.74916049,0.00014191,2]
[353617677,1739958676470,-500.0,0.00014191,2]
[353617678,1739958676479,-671.31,0.00014191,2]
[353617679,1739958676489,-500.0,0.00014191,2]
[353617680,1739958676499,-500.0,0.00014191,2]
[353617681,1739958676508,-509.48480804,0.00014191,2]
[353617682,1739958676517,-500.0,0.00014191,2]
[353617683,1739958676526,-500.0,0.00014191,2]
[353617684,1739958676536,-500.0,0.00014191,2]
[353617685,1739958676563,-500.0,0.00014191,2]
[353617686,1739958676583,-500.0,0.00014191,2]
[353617687,1739958676592,-151.0,0.00014191,2]
[353617688,1739958676601,-500.0,0.00014191,2]
[353617689,1739958676611,-500.0,0.00014191,2]
[353617690,1739958676622,-500.0,0.00014191,2]
[353617691,1739958676632,-837.24,0.00014191,2]
[353617692,1739958676641,-527.91,0.00014191,2]
[353617693,1739958676650,-623.3,0.00014191,2]
[353617694,1739958676660,-500.0,0.00014191,2]
[353617695,1739958676670,-500.0,0.00014191,2]
[353617696,1739958676788,-344.47557566,0.00014191,2]
[353617697,1739958676807,-500.0,0.00014191,2]
[353617698,1739958676818,-500.0,0.00014191,2]
[353617699,1739958676828,-595.63,0.00014191,2]
[353617700,1739958676838,-500.0,0.00014191,2]
[353617701,1739958676848,-949.24,0.00014191,2]
[353617702,1739958676858,-500.0,0.00014191,2]
[353617703,1739958676868,-500.0,0.00014191,2]
[353617704,1739958676878,-500.0,0.00014191,2]
[353617705,1739958676887,-500.0,0.00014191,2]
[353617706,1739958676897,-833.43,0.00014191,2]
[353617707,1739958676906,-846.54,0.00014191,2]
[353617708,1739958676915,-500.0,0.00014191,2]
[353617709,1739958676925,-886.83,0.00014191,2]
[353617710,1739958676934,-500.0,0.00014191,2]
[353617711,1739958676943,-500.0,0.00014191,2]
[353617712,1739958676953,-500.0,0.00014191,2]
[353617713,1739958676962,-500.0,0.00014191,2]
[353617714,1739958676971,-500.0,0.00014191,2]
[353617715,1739958676982,-1102.94,0.00014191,2]
[353617716,1739958676992,-151.0,0.00014191,2]
[353617717,1739958677002,-1000.0,0.00014246,4]
[353617718,1739958677014,-518.68728413,0.00014267,2]
[353617719,1739958677024,-500.0,0.00014271,2]
[353617720,1739958677035,-500.0,0.00014271,2]
[353617721,1739958677044,-500.0,0.00014271,2]
[353617722,1739958677053,-500.0,0.00014271,2]
[353617723,1739958677064,-506.71617009,0.00014271,2]
[353617724,1739958677075,-500.0,0.00014271,2]
[353617725,1739958677084,-500.0,0.00014271,2]
[353617726,1739958677095,-689.97,0.00014271,2]
[353617727,1739958677104,-500.0,0.00014271,2]
[353617728,1739958677114,-500.0,0.00014271,2]
[353617729,1739958677123,-500.0,0.00014271,2]
[353617730,1739958677132,-501.68,0.00014271,2]
[353617731,1739958677142,-1638.75,0.00014271,2]
[353617732,1739958677151,-764.118626,0.00014271,2]
[353617733,1739958677161,-500.0,0.00014271,2]
[353617734,1739958677171,-1719.57,0.00014271,2]
[353617735,1739958677180,-500.0,0.00014271,2]
[353617736,1739958677190,-598.117079,0.00014271,2]
[353617737,1739958677200,-1122.32,0.00014271,2]
[353617738,1739958677209,-500.0,0.00014271,2]
[353617739,1739958677219,-1319.32,0.00014271,2]
[353617740,1739958677228,-500.0,0.00014271,2]
[353617741,1739958677238,-500.0,0.00014271,2]
[353617742,1739958677247,-1631.12,0.00014271,2]
[353617743,1739958677257,-3224.55,0.00014271,2]
[353617744,1739958677266,-500.0,0.00014271,2]
[353617745,1739958677275,-1046.1,0.00014271,2]
[353617746,1739958677285,-822.22,0.00014271,2]
[353617747,1739958677295,-517.86,0.00014271,2]
[353617748,1739958677304,-1897.39,0.00014271,2]
[353617749,1739958677314,-1595.95,0.00014271,2]
[353617750,1739958677325,-2360.69,0.00014271,2]
[353617751,1739958677335,-500.0,0.00014271,2]
[353617752,1739958677345,-500.0,0.00014271,2]
[353617753,1739958677355,-500.0,0.00014271,2]
[353617754,1739958677364,-500.0,0.00014271,2]
[353617755,1739958677374,-930.8,0.00014271,2]
[353617756,1739958677388,-4058.1,0.00014271,2]
[353617757,1739958677399,-500.0,0.00014271,2]
[353617758,1739958677409,-661.97,0.00014271,2]
[353617759,1739958677431,-2252.01,0.00014271,2]
[353617760,1739958677450,-500.0,0.00014271,2]
[353617761,1739958677463,-500.0,0.00014271,2]
[353617762,1739958677473,-500.0,0.00014271,2]
[353617763,1739958677483,-500.0,0.00014271,2]
[353617764,1739958677494,-1230.73,0.00014271,2]
[353617765,1739958677506,-591.75,0.00014271,2]
[353617766,1739958677516,-299.98108702,0.00014271,2]
[353617767,1739958677527,-500.0,0.00014271,2]
[353617768,1739958677536,-1971.74,0.00014271,2]
[353617769,1739958677547,-262.46234068,0.00014271,2]
[353617770,1739958677556,-1580.38,0.00014271,2]
[353617771,1739958677567,-777.0,0.00014271,2]
[353617772,1739958677578,-406.42126571,0.00014271,2]
[353617773,1739958677588,-500.0,0.00014271,2]
[353617774,1739958677597,-500.0,0.00014271,2]
[353617775,1739958677607,-2647.7,0.00014271,2]
[353617776,1739958677616,-500.0,0.00014271,2]
[353617777,1739958677626,-1017.49,0.00014271,2]
[353617778,1739958677636,-1298.81,0.00014271,2]
[353617779,1739958677647,-500.0,0.00014271,2]
[353617780,1739958677657,-1429.82,0.00014271,2]
[353617781,1739958677666,-319.74165653,0.00014271,2]
[353617782,1739958677676,-500.0,0.00014271,2]
[353617783,1739958677685,-1350.11,0.00014271,2]
[353617784,1739958677695,-500.0,0.00014271,2]
[353617785,1739958677704,-1657.98,0.00014271,2]
[353617786,1739958677713,-500.0,0.00014271,2]
[353617787,1739958677723,-500.0,0.00014271,2]
[353617788,1739958677732,-500.0,0.00014271,2]
[353617789,1739958677742,-2268.32,0.00014271,2]
[353617790,1739958677751,-500.0,0.00014271,2]
[353617791,1739958677760,-500.0,0.00014271,2]
[353617792,1739958677770,-500.0,0.00014271,2]
[353617793,1739958677779,-500.0,0.00014271,2]
[353617794,1739958677789,-500.0,0.00014271,2]
[353617795,1739958677798,-500.0,0.00014271,2]
[353617796,1739958677808,-2631.41,0.00014271,2]
[353617797,1739958677818,-1668.81,0.00014271,2]
[353617798,1739958677832,-1315.26,0.00014271,2]
[353617799,1739958677841,-1731.57,0.00014271,2]
[353617800,1739958677851,-500.0,0.00014271,2]
[353617801,1739958677860,-714.44,0.00014271,2]
[353617802,1739958677870,-1643.03,0.00014271,2]
[353617803,1739958677880,-1725.14,0.00014271,2]
[353617804,1739958677890,-764.1,0.00014271,2]
[353617805,1739958677899,-1919.55,0.00014271,2]
[353617806,1739958677910,-500.0,0.00014271,2]
[353617807,1739958677920,-627.8,0.00014271,2]
[353617808,1739958677931,-1254.03,0.00014271,2]
[353617809,1739958677941,-1433.78,0.00014271,2]
[353617810,1739958677951,-500.0,0.00014271,2]
[353617811,1739958677960,-654.61,0.00014271,2]
[353617812,1739958677971,-500.0,0.00014271,2]
[353617813,1739958677980,-741.88,0.00014271,2]
[353617814,1739958677990,-1167.89,0.00014271,2]
[353617815,1739958677999,-810.7,0.00014271,2]
[353617816,1739958678009,-2263.14,0.00014271,2]
[353617817,1739958678019,-493.01214436,0.00014271,2]
[353617818,1739958678038,-1747.62,0.00014271,2]
[353617819,1739958678048,-500.0,0.00014271,2]
[353617820,1739958678058,-272.91608214,0.00014271,2]
[353617821,1739958678067,-500.0,0.00014271,2]
[353617822,1739958678079,-500.0,0.00014271,2]
[353617823,1739958678089,-562.97,0.00014271,2]
[353617824,1739958678098,-599.82,0.00014271,2]
[353617825,1739958678108,-1126.39,0.00014271,2]
[353617826,1739958678118,-1051.71,0.00014271,2]
[353617827,1739958678128,-507.56,0.00014271,2]
[353617828,1739958678138,-1415.79,0.00014271,2]
[353617829,1739958678150,-1904.34,0.00014271,2]
[353617830,1739958678159,-2445.12,0.00014271,2]
[353617831,1739958678169,-520.58,0.00014271,2]
[353617832,1739958678179,-500.0,0.00014271,2]
[353617833,1739958678188,-2013.34,0.00014271,2]
[353617834,1739958678198,-500.0,0.00014271,2]
[353617835,1739958678208,-500.0,0.00014271,2]
[353617836,1739958678218,-500.0,0.00014271,2]
[353617837,1739958678227,-500.0,0.00014271,2]
[353617838,1739958678237,-1155.82,0.00014271,2]
[353617839,1739958678246,-556.48,0.00014271,2]
[353617840,1739958678256,-500.0,0.00014272,2]
[353617841,1739958678265,-500.0,0.00014272,2]
[353617842,1739958678275,-500.0,0.00014272,2]
[353617843,1739958678284,-500.0,0.00014272,2]
[353617844,1739958678293,-500.0,0.00014272,2]
[353617845,1739958678303,-500.0,0.00014272,2]
[353617846,1739958678312,-500.0,0.00014272,2]
[353617847,1739958678322,-500.0,0.00014272,2]
[353617848,1739958678333,-500.0,0.00014272,2]
[353617849,1739958678343,-500.0,0.00014272,2]
[353617850,1739958678353,-500.0,0.00014272,2]
[353617851,1739958678363,-555.74,0.00014272,2]
[353617852,1739958678373,-572.35,0.00014272,2]
[353617853,1739958678387,-500.0,0.00014272,2]
[353617854,1739958678398,-500.0,0.00014272,2]
[353617855,1739958678409,-500.0,0.00014272,2]
[353617856,1739958678419,-500.0,0.00014272,2]
[353617857,1739958678430,-500.0,0.00014272,2]
[353617858,1739958678440,-500.0,0.00014272,2]
[353617859,1739958678451,-500.0,0.00014272,2]
[353617860,1739958678461,-500.0,0.00014272,2]
[353617861,1739958678471,-500.0,0.00014272,2]
[353617862,1739958678482,-500.0,0.00014272,2]
[353617863,1739958678492,-512.88,0.00014272,2]
[353617864,1739958678502,-500.0,0.00014272,2]
[353617865,1739958678512,-500.0,0.00014272,2]
[353617866,1739958678522,-500.0,0.00014272,2]
[353617867,1739958678532,-500.0,0.00014272,2]
[353617868,1739958678542,-501.74,0.00014272,2]
[353617869,1739958678552,-455.84624603,0.00014272,2]
[353617870,1739958678562,-1364.58,0.00014272,2]
[353617871,1739958678573,-500.0,0.00014272,2]
[353617872,1739958678584,-153.926426,0.00014272,2]
[353617873,1739958678593,-601.39228771,0.00014272,2]
[353617874,1739958678604,-153.926426,0.00014272,2]
[353617875,1739958678614,-500.0,0.00014272,2]
[353617876,1739958678623,-500.0,0.00014272,2]
[353617877,1739958678633,-500.0,0.00014272,2]
[353617878,1739958678643,-500.0,0.00014272,2]
[353617879,1739958678652,-777.52,0.00014272,2]
[353617880,1739958678662,-500.0,0.00014272,2]
[353617881,1739958678672,-500.0,0.00014272,2]
[353617882,1739958678681,-500.0,0.00014272,2]
[353617883,1739958678691,-584.72,0.00014272,2]
[353617884,1739958678701,-500.0,0.00014272,2]
[353617885,1739958678712,-500.0,0.00014272,2]
[353617886,1739958678721,-598.61,0.00014272,2]
[353617887,1739958678731,-500.0,0.00014272,2]
[353617888,1739958678740,-819.81,0.00014272,2]
[353617889,1739958678751,-579.43,0.00014272,2]
[353617890,1739958678761,-662.41,0.00014272,2]
[353617891,1739958678771,-500.0,0.00014272,2]
[353617892,1739958678781,-545.98,0.00014272,2]
[353617893,1739958678791,-500.0,0.00014272,2]
[353617894,1739958678800,-500.0,0.00014272,2]
[353617895,1739958678809,-500.0,0.00014272,2]
[353617896,1739958678819,-650.6,0.00014272,2]
[353617897,1739958678828,-500.0,0.00014272,2]
[353617898,1739958678838,-1348.26557,0.00014272,2]
[353617899,1739958678848,-151.0,0.00014272,2]
[353617900,1739958678859,-1348.26557,0.00014272,2]
[353617901,1739958678869,-500.0,0.00014272,2]
[353617902,1739958678879,-500.0,0.00014272,2]
[353617903,1739958678888,-500.0,0.00014272,2]
[353617904,1739958678897,-500.0,0.00014272,2]
[353617905,1739958678907,-500.0,0.00014272,2]
[353617906,1739958678917,-500.0,0.00014272,2]
[353617907,1739958678927,-974.17485474,0.00014272,2]
[353617908,1739958679653,-1715.41514526,0.00014272,2]
[353617909,1739958679663,-500.0,0.00014272,2]
[353617910,1739958679673,-675.26,0.00014272,2]
[353617911,1739958679683,-1054.3,0.00014272,2]
[353617912,1739958679694,-525.73,0.00014272,2]
[353617913,1739958679707,-1002.09,0.00014272,2]
[353617914,1739958679717,-1768.75,0.00014272,2]
[353617915,1739958679727,-500.0,0.00014272,2]
[353617916,1739958679737,-566.11,0.00014272,2]
[353617917,1739958679747,-500.0,0.00014272,2]
[353617918,1739958679757,-1310.35,0.00014272,2]
[353617919,1739958679767,-500.0,0.00014272,2]
[353617920,1739958679778,-500.0,0.00014272,2]
[353617921,1739958679791,-500.0,0.00014272,2]
[353617922,1739958679800,-802.0,0.00014272,2]
[353617923,1739958679810,-500.0,0.00014272,2]
[353617924,1739958679819,-500.0,0.00014272,2]
[353617925,1739958679829,-630.16,0.00014272,2]
[353617926,1739958679840,-1193.41,0.00014272,2]
[353617927,1739958679850,-1595.03,0.00014272,2]
[353617928,1739958679860,-123.66406951,0.00014272,2]
[353617929,1739958679872,-376.33593049,0.00014272,2]
[353617930,1739958679881,-92.61099783,0.00014272,2]
[353617931,1739958679893,-247.51930977,0.00014272,2]
[353617932,1739958679903,-1140.33,0.00014272,2]
[353617933,1739958679913,-1145.3,0.00014272,2]
[353617934,1739958679923,-533.66,0.00014272,2]
[353617935,1739958679933,-1298.9,0.00014272,2]
[353617936,1739958679943,-1690.53,0.00014272,2]
[353617937,1739958679953,-500.0,0.00014272,2]
[353617938,1739958679962,-500.0,0.00014272,2]
[353617939,1739958679972,-500.0,0.00014272,2]
[353617940,1739958679981,-500.0,0.00014272,2]
[353617941,1739958679991,-500.0,0.00014272,2]
[353617942,1739958680000,-692.97,0.00014272,2]
[353617943,1739958680009,-1648.75,0.00014272,2]
[353617944,1739958680019,-1384.35,0.00014272,2]
[353617945,1739958680028,-500.0,0.00014272,2]
[353617946,1739958680038,-500.0,0.00014272,2]
[353617947,1739958680047,-500.0,0.00014272,2]
[353617948,1739958680057,-500.0,0.00014272,2]
[353617949,1739958680067,-500.0,0.00014272,2]
[353617950,1739958680076,-1155.94,0.00014272,2]
[353617951,1739958680087,-1515.36,0.00014272,2]
[353617952,1739958680096,-667.96,0.00014272,2]
[353617953,1739958680105,-500.0,0.00014272,2]
[353617954,1739958680115,-500.0,0.00014272,2]
[353617955,1739958680125,-500.0,0.00014272,2]
[353617956,1739958680135,-500.0,0.00014272,2]
[353617957,1739958680144,-1520.24,0.00014272,2]
[353617958,1739958680154,-500.0,0.00014272,2]
[353617959,1739958680163,-806.85,0.00014272,2]
[353617960,1739958680173,-500.0,0.00014272,2]
[353617961,1739958680182,-1543.83,0.00014272,2]
[353617962,1739958680192,-500.0,0.00014272,2]
[353617963,1739958680202,-1384.11,0.00014272,2]
[353617964,1739958680212,-500.0,0.00014272,2]
[353617965,1739958680221,-786.83,0.00014272,2]
[353617966,1739958680231,-500.0,0.00014272,2]
[353617967,1739958680240,-1949.93,0.00014272,2]
[353617968,1739958680250,-997.23,0.00014272,2]
[353617969,1739958680259,-500.0,0.00014272,2]
[353617970,1739958680269,-500.0,0.00014272,2]
[353617971,1739958680279,-1755.95,0.00014272,2]
[353617972,1739958680288,-500.0,0.00014272,2]
[353617973,1739958680298,-500.0,0.00014272,2]
[353617974,1739958680308,-500.0,0.00014273,2]
[353617975,1739958680317,-500.0,0.00014273,2]
[353617976,1739958680327,-500.0,0.00014273,2]
[353617977,1739958680337,-500.0,0.00014273,2]
[353617978,1739958680347,-395.76075785,0.00014273,2]
[353617979,1739958680356,-500.0,0.00014273,2]
[353617980,1739958680366,-500.0,0.00014273,2]
[353617981,1739958680377,-500.0,0.00014273,2]
[353617982,1739958680388,-654.29,0.00014273,2]
[353617983,1739958680399,-500.0,0.00014273,2]
[353617984,1739958680408,-500.0,0.00014273,2]
[353617985,1739958680418,-500.0,0.00014273,2]
[353617986,1739958680430,-500.0,0.00014273,2]
[353617987,1739958680439,-1204.96,0.00014273,2]
[353617988,1739958680449,-709.03,0.00014273,2]
[353617989,1739958680459,-500.0,0.00014273,2]
[353617990,1739958680469,-500.0,0.00014273,2]
[353617991,1739958680478,-531.9,0.00014273,2]
[353617992,1739958680487,-500.0,0.00014273,2]
[353617993,1739958680496,-573.3584676,0.00014273,2]
[353617994,1739958680505,-163.75742784,0.00014273,2]
[353617995,1739958680515,-500.0,0.00014273,2]
[353617996,1739958680524,-508.01,0.00014273,2]
[353617997,1739958680534,-453.95187974,0.00014273,2]
[353617998,1739958680544,-448.55526829,0.00014273,2]
[353617999,1739958680553,-1121.0,0.00014273,2]
[353618000,1739958680563,-500.0,0.00014273,2]
[353618001,1739958680572,-500.0,0.00014273,2]
[353618002,1739958680581,-500.0,0.00014273,2]
[353618003,1739958680591,-544.84,0.00014273,2]
[353618004,1739958680602,-500.0,0.00014273,2]
[353618005,1739958680612,-500.0,0.00014273,2]
[353618006,1739958680622,-500.0,0.00014273,2]
[353618007,1739958680632,-500.0,0.00014273,2]
[353618008,1739958680642,-500.0,0.00014273,2]
[353618009,1739958680651,-500.0,0.00014273,2]
[353618010,1739958680660,-500.0,0.00014273,2]
[353618011,1739958680670,-541.25,0.00014273,2]
[353618012,1739958680679,-500.0,0.00014273,2]
[353618013,1739958680689,-500.0,0.00014273,2]
[353618014,1739958680699,-500.0,0.00014273,2]
[353618015,1739958680708,-500.0,0.00014273,2]
[353618016,1739958680717,-500.0,0.00014273,2]
[353618017,1739958680727,-151.0,0.00014273,2]
[353618018,1739958680736,-500.0,0.00014273,2]
[353618019,1739958680745,-555.48558472,0.00014273,2]
[353618020,1739958680755,-500.0,0.00014273,2]
[353618021,1739958680764,-500.0,0.00014273,2]
[353618022,1739958680773,-500.0,0.00014273,2]
[353618023,1739958680782,-500.0,0.00014273,2]
[353618024,1739958680793,-604.95,0.00014273,2]
[353618025,1739958680802,-500.0,0.00014273,2]
[353618026,1739958680811,-500.0,0.00014273,2]
[353618027,1739958680820,-500.0,0.00014273,2]
[353618028,1739958680829,-620.86,0.00014273,2]
[353618029,1739958680839,-500.0,0.00014273,2]
[353618030,1739958680848,-521.33,0.00014273,2]
[353618031,1739958680857,-500.0,0.00014273,2]
[353618032,1739958680867,-500.0,0.00014273,2]
[353618033,1739958680876,-542.44,0.00014273,2]
[353618034,1739958680885,-580.8481301,0.00014273,2]
[353618035,1739958680894,-301.0105002,0.00014273,2]
[353618036,1739958680903,-500.0,0.00014273,2]
[353618037,1739958680912,-500.0,0.00014273,2]
[353618038,1739958680922,-500.0,0.00014273,2]
[353618039,1739958680931,-566.47,0.00014273,2]
[353618040,1739958680940,-500.0,0.00014273,2]
[353618041,1739958680950,-500.0,0.00014273,2]
[353618042,1739958680960,-500.0,0.00014273,2]
[353618043,1739958680970,-500.0,0.00014273,2]
[353618044,1739958680980,-245.85149355,0.00014273,2]
[353618045,1739958680989,-500.0,0.00014273,2]
[353618046,1739958680999,-500.0,0.00014273,2]
[353618047,1739958681009,-500.0,0.00014273,2]
[353618048,1739958681018,-500.0,0.00014273,2]
[353618049,1739958681027,-563.67,0.00014273,2]
[353618050,1739958681036,-500.0,0.00014273,2]
[353618051,1739958681046,-436.27301851,0.00014273,2]
[353618052,1739958681056,-500.0,0.00014273,2]
[353618053,1739958681066,-500.0,0.00014273,2]
[353618054,1739958681075,-587.72,0.00014273,2]
[353618055,1739958681084,-653.58,0.00014273,2]
[353618056,1739958681094,-500.0,0.00014273,2]
[353618057,1739958681103,-500.0,0.00014273,2]
[353618058,1739958681112,-500.0,0.00014273,2]
[353618059,1739958681122,-500.0,0.00014273,2]
[353618060,1739958681132,-500.0,0.00014273,2]
[353618061,1739958681142,-500.0,0.00014273,2]
[353618062,1739958681152,-500.0,0.00014273,2]
[353618063,1739958681162,-500.0,0.00014273,2]
[353618064,1739958681171,-418.3540176,0.00014273,2]
[353618065,1739958681180,-500.0,0.00014273,2]
[353618066,1739958681191,-500.0,0.00014273,2]
[353618067,1739958681201,-500.0,0.00014273,2]
[353618068,1739958681210,-657.98,0.00014273,2]
[353618069,1739958681220,-933.0,0.00014273,2]
[353618070,1739958681230,-500.0,0.00014273,2]
[353618071,1739958681240,-234.66062336,0.00014273,2]
[353618072,1739958681332,-265.33937664,0.00014273,2]
[353618073,1739958681342,-5.59346706,0.00014273,2]
[353618074,1739958985216,500.0,0.0002,120]
[353618075,1739958985461,500.0,0.0002,120]
[353618076,1739958985745,500.0,0.0002,120]
[353618077,1739958985978,500.0,0.0002,120]
[353618078,1739958986566,500.0,0.0002,120]
[353618079,1739958986812,500.0,0.0002,120]
[353618080,1739958987038,500.0,0.0002,120]
[353618081,1739958987281,184.5,0.0002,120]
[353618190,1739959832014,-159.01,0.0001057,2]
[353618191,1739959832024,-597.26,0.00011253,2]
[353618192,1739959832033,-150.0,0.00011627,2]
[353618193,1739959832042,-276.59522863,0.000129,2]
[353618194,1739959832231,-104.76477137,0.000129,2]
[353618195,1739959832241,-388.6082826,0.00012927,2]
[353618232,1739959838000,-611.3917174,0.00012927,2]
[353618233,1739959838011,-391.97093696,0.00013,2]
[353618234,1739959838023,-158.02906304,0.00013,2]
[353618235,1739959838032,-597.26,0.00013517,2]
[353618236,1739959838041,-4798.2036,0.00013578,2]
[353618237,1739959838051,-300.0,0.00013659,2]
[353618238,1739959838062,-5186.75248082,0.0001366,2]
[353618239,1739959838071,-174.59510181,0.0001366,2]
[353618240,1739959838080,-236.43142388,0.0001366,2]
[353618241,1739959838089,-1525.9212384,0.0001366,2]
[353618657,1739959843327,-6150.95657617,0.000136,2]
[353618659,1739959843338,-188.2210602,0.000136,2]
[353618661,1739959843348,-69.3117081,0.0001366,2]
[353618664,1739959843359,-3557.48065553,0.00013678,2]
[353618688,1739959843494,-13257.82844447,0.00013678,2]
[353618690,1739959843504,-6045.77155553,0.00013678,2]
[353618707,1739959843659,-467.71104447,0.00013678,2]
[353618709,1739959843668,-239.9145,0.00013678,2]
[353618711,1739959843677,-402.37445553,0.00013678,2]
[353618718,1739959843738,-17.84941308,0.00013678,2]
[353618939,1739959845984,-252.129993,0.00013678,2]
[353618958,1739959846152,-530.31040628,0.00013678,2]
[353619727,1739960408708,159.06,8.767e-05,2]
[353619732,1739960736514,11929.94892043,8e-05,2]
[353619768,1739961032077,-320.66312088,9.999e-05,2]
[353619770,1739961032237,-179.33687912,9.999e-05,2]
[353619771,1739961032247,-500.0,9.999e-05,2]
[353619772,1739961032256,-500.0,9.999e-05,2]
[353619773,1739961032266,-500.0,9.999e-05,2]
[353619774,1739961032275,-324.38766711,9.999e-05,2]
[353619775,1739961032287,-175.61233289,9.999e-05,2]
[353619776,1739961032296,-500.0,9.999e-05,2]
[353619777,1739961032305,-500.0,9.999e-05,2]
[353619778,1739961032314,-452.71162531,9.999e-05,2]
[353619779,1739961032324,-500.0,9.999e-05,2]
[353619780,1739961032334,-178910.41572298,0.0001,2]
[353619781,1739961032346,-129257.35283898,0.0001,2]
[353619782,1739961032370,-96499.00000001,0.0001,2]
[353619794,1739961038384,-305208.4933315,0.0001,2]
[353619795,1739961038395,-59194.97112069,0.0001,2]
[353619796,1739961038405,-247.14410513,0.000108,2]
[353619797,1739961038415,-158.47253354,0.000109,2]
[353619798,1739961038425,-6349.0,0.00010913,2]
[353619799,1739961038436,-579.99,0.00010914,2]
[353619800,1739961038446,-1809.088935,0.00011099,2]
[353619801,1739961038455,-4270.48034656,0.00011099,2]
[353619802,1739961038465,-4270.48034647,0.00011111,2]
[353619803,1739961038475,-1809.08893491,0.00011122,2]
[353619804,1739961038485,-3339.66025361,0.00011147,2]
[353619805,1739961038494,-4270.48034647,0.00011422,2]
[353619807,1739961038503,-1809.08893491,0.00011432,2]
[353619809,1739961038512,-4270.48034647,0.00011733,2]
[353619811,1739961038522,-1809.08893491,0.00011741,2]
[353619813,1739961038531,-4270.48034647,0.00012044,2]
[353619815,1739961038541,-1809.08893491,0.00012051,2]
[353619817,1739961038551,-150.0,0.00012304,2]
[353619819,1739961038560,-335.50362054,0.00012309,2]
[353619821,1739961038570,-4270.48034647,0.00012354,2]
[353619823,1739961038580,-1809.08893491,0.0001236,2]
[353619825,1739961038590,-250.0,0.00012525,2]
[353619827,1739961038599,-1000.0,0.0001266,2]
[353619830,1739961038609,-319.4,0.00012665,2]
[353619833,1739961038618,-4270.48034647,0.00012665,2]
[353619836,1739961038627,-1809.08893491,0.0001267,2]
[353619839,1739961038637,-150.0,0.00012809,2]
[353619842,1739961038647,-172.747,0.00012846,2]
[353619845,1739961038656,-2628.69,0.00012846,2]
[353619848,1739961038666,-14469.22,0.00012846,2]
[353619851,1739961038676,-200.0,0.000129,4]
[353619854,1739961038685,-1060.0,0.00012957,2]